fUST/lending_fUST_20240606
["ID","MTS","AMOUNT","RATE_DAILY","PERIOD"]
[328635299,1717645871526,692.15201027,9.999e-05,2]
[328635301,1717645879570,154.9690062,9.999e-05,2]
[328635302,1717645881318,216.20948756,9.999e-05,2]
[328635303,1717645884963,721.95297279,9.999e-05,2]
[328635304,1717645886893,190.09701144,0.00016931,2]
[328635305,1717645886983,2035.79578747,9.999e-05,2]
[328635307,1717645903011,837.71685131,9.999e-05,2]
[328635310,1717645909579,1689.82993633,0.00015,2]
[328635645,1717646697605,1202.8,0.00028,120]
[328635646,1717646697634,1202.8,0.00028,120]
[328635647,1717646697682,147885.4,0.00028,120]
[328635673,1717646852329,-14.44012211,0.0003,120]
[328635674,1717646852472,-1528.80621445,0.000308,120]
[328635675,1717646852492,-150.0,0.000315,120]
[328635676,1717646852511,-500.0,0.00032,120]
[328635677,1717646852530,-153.173076,0.00032,120]
[328635678,1717646852552,-500.0,0.00034,120]
[328635679,1717646852572,-2415.27541737,0.00034973,120]
[328635680,1717646852591,-846.58485878,0.00035,120]
[328635681,1717646852612,-1008.58841262,0.00035,120]
[328635682,1717646852698,-2954.78158738,0.00035,120]
[328635683,1717646852718,-1476.23346328,0.00035,120]
[328635684,1717646852870,-200.0,0.00035,120]
[328635710,1717646943344,187.7557578,9.999e-05,2]
[328635712,1717646951879,552.15459788,9.999e-05,2]
[328635716,1717646966770,489.4618939,9.999e-05,2]
[328635741,1717647032416,-261.878967,0.00017199,2]
[328635743,1717647032426,-7914.74227919,0.00017593,2]
[328635745,1717647032435,-2671.9415818,0.00017594,2]
[328635747,1717647032444,-2400.43824002,0.00017803,2]
[328635851,1717647038367,-1480.74942289,0.00017803,2]
[328635856,1717647041390,-236.48685049,0.00017803,2]
[328635857,1717647041400,-710.56668851,0.00018,2]
[328635858,1717647041409,-6466.83788939,0.00018221,2]
[328635859,1717647041422,-18433.16211061,0.00018221,2]
[328635860,1717647041431,-193.05625106,0.00018874,2]
[328635861,1717647041441,-401.87632945,0.00019178,7]
[328635862,1717647041450,-150.0,0.00019696,2]
[328635863,1717647041460,-2697.19247627,0.00019768,2]
[328635864,1717647041470,-6720.64387066,0.00019868,2]
[328635865,1717647041481,-252.92464018,0.00019868,2]
[328635890,1717647046243,-2259.26515726,0.00019868,2]
[328635907,1717647119680,524.11356144,9.999e-05,2]
[328635909,1717647127834,411.37134746,9.999e-05,2]
[328635912,1717647158212,692.15201027,9.999e-05,2]
[328635937,1717647321717,6050.0,0.00035616,120]
[328635939,1717647334085,1855.1732714,0.00035,120]
[328635940,1717647334108,200.0,0.00035,120]
[328635943,1717647339716,2415.27541737,0.00034973,120]
[328635944,1717647351531,1528.80621445,0.000308,120]
[328635953,1717647504703,10536.38828398,9.999e-05,2]
[328635959,1717647556620,2094.29381727,9.999e-05,2]
[328635960,1717647574619,2094.29381727,9.999e-05,2]
[328635961,1717647584593,552.15459788,9.999e-05,2]
[328635962,1717647587744,250.0,0.00016708,2]
[328635963,1717647590623,2182.62554265,9.999e-05,2]
[328635964,1717647596273,359.97,0.00010959,2]
[328635965,1717647608414,187.7557578,9.999e-05,2]
[328635966,1717647664084,156.8919944,9.999e-05,2]
[328635967,1717647666072,1100.10114648,0.00015,2]
[328635968,1717647791605,15675.02189808,0.00016684,2]
[328636108,1717648050474,187.7557578,9.999e-05,2]
[328636109,1717648095999,830.56012241,9.999e-05,2]
[328636110,1717648099435,724.71,0.00010959,2]
[328636111,1717648104077,173.95546905,0.00012511,2]
[328636112,1717648105875,317.32399469,9.999e-05,2]
[328636113,1717648175320,185.27974199,9.999e-05,2]
[328636164,1717648232413,-913.24602737,0.00016584,2]
[328636166,1717648232425,-120.03664927,0.00016584,2]
[328636168,1717648232434,-1212.67182606,0.00016584,2]
[328636170,1717648232444,-170.71266282,0.00016679,2]
[328636172,1717648232453,-1100.94411011,0.0001668,2]
[328636174,1717648232462,-19298.65138035,0.0001668,2]
[328636176,1717648232472,-154.9690062,0.00016681,2]
[328636178,1717648232481,-172.87098467,0.00016681,2]
[328636180,1717648232490,-318.79307766,0.00016681,2]
[328636182,1717648232499,-59548.95244126,0.00016683,2]
[328636185,1717648232509,-9224.97810192,0.00016684,2]
[328636188,1717648232519,-351.72357881,0.00017707,2]
[328636191,1717648232527,-556.45853999,0.00017707,2]
[328636194,1717648232536,-156.60960636,0.00017707,2]
[328636197,1717648232546,-12414.25766256,0.0001771,2]
[328636487,1717648238939,-4109.16328342,0.0001771,2]
[328636527,1717648239315,-1696.85487879,0.0001771,2]
[328636753,1717648241922,-304.71368244,0.0001771,2]
[328636879,1717648244113,-22604.73510287,0.0001771,2]
[328637001,1717648282460,411.37134746,9.999e-05,2]
[328637005,1717649008033,154.95351395,9.999e-05,2]
[328637022,1717649112476,837.71685131,9.999e-05,2]
[328637023,1717649331664,24900.0,0.00013916,2]
[328637024,1717649336762,222.277251,0.00013916,2]
[328637105,1717649432707,-219.2480606,0.00014607,2]
[328637107,1717649432718,-828.9969394,0.00014796,2]
[328637109,1717649432730,-8755.29322321,0.00014796,2]
[328637111,1717649432739,-3070.38438642,0.00014797,2]
[328637113,1717649432748,-1136.95574784,0.00014798,2]
[328637115,1717649432758,-47426.31062998,0.00014883,2]
[328637118,1717649432770,-12122.64181128,0.00014883,2]
[328637120,1717649432779,-826.62614132,0.00014898,2]
[328637122,1717649432788,-267.4820725,0.00014993,2]
[328637124,1717649432798,-286.33791892,0.00015,2]
[328637125,1717649432808,-1689.82993633,0.00015,2]
[328637127,1717649432818,-155.77869423,0.00015766,2]
[328637128,1717649432827,-9911.76097796,0.00015767,2]
[328637129,1717649432836,-923.37699481,0.00015771,2]
[328637130,1717649432845,-826.62614129,0.00016149,2]
[328637131,1717649432856,-1628.1313824,0.00016232,2]
[328637132,1717649432865,-1136.95574781,0.00016527,2]
[328637133,1717649432874,-826.62614129,0.00017399,2]
[328637134,1717649432884,-4236.27632862,0.00017491,2]
[328637135,1717649432893,-16124.37044117,0.00017598,2]
[328637136,1717649432903,-7914.74227919,0.000176,2]
[328637137,1717649432912,-305.01900698,0.000176,2]
[328637138,1717649432921,-3891.39971123,0.00017603,2]
[328637148,1717649438490,-998.88992652,0.00017603,2]
[328637149,1717649438502,-1132.23258615,0.00017603,2]
[328637150,1717649438514,-1874.47092844,0.00017603,2]
[328637177,1717649552468,154.95351395,9.999e-05,2]
[328637178,1717649579232,154.95351395,0.000137,2]
[328637179,1717649590750,568.50837105,9.999e-05,2]
[328637180,1717649593692,154.95351395,9.999e-05,7]
[328637181,1717649604662,759.55453663,9.999e-05,2]
[328637182,1717649606076,285.73167299,9.999e-05,2]
[328637183,1717649607478,284.42018081,0.000137,2]
[328637184,1717649609926,208.71266076,9.999e-05,2]
[328637185,1717649614038,836.39,0.00010959,2]
[328637186,1717649619166,164.54831723,9.999e-05,2]
[328637187,1717649621695,529.97215195,9.999e-05,2]
[328637188,1717649636040,721.95297279,9.999e-05,2]
[328637189,1717649654838,686.02573019,9.999e-05,2]
[328637190,1717649655214,1982.61645022,9.999e-05,2]
[328637191,1717649658874,154.95351395,9.999e-05,2]
[328637192,1717649659719,157.64438498,9.999e-05,2]
[328637193,1717649664852,1281.31823399,9.999e-05,2]
[328637194,1717649670178,154.95351395,0.00017596,7]
[328637195,1717649690180,192.6244165,0.00017594,7]
[328637196,1717649779353,486.2,0.00010959,2]
[328637197,1717649789886,405.16,0.00010959,2]
[328637198,1717649800388,337.64,0.00010959,2]
[328637199,1717649810897,281.36,0.00010959,2]
[328637200,1717649821414,234.47,0.00010959,2]
[328637201,1717649831937,195.39,0.00010959,2]
[328637202,1717649842449,162.83,0.00010959,2]
[328637203,1717649844295,400.6031707,0.00016438,7]
[328637204,1717649852590,312.2401131,0.00014979,10]
[328637205,1717649853182,814.16,0.00010959,2]
[328637206,1717649854720,1902.88024106,9.999e-05,2]
[328637207,1717649856979,158.96879947,9.999e-05,2]
[328637208,1717649857833,154.95351395,9.999e-05,2]
[328637209,1717649857999,216.20948756,9.999e-05,2]
[328637210,1717649859485,267.31355205,9.999e-05,7]
[328637211,1717649860885,1155.18222272,9.999e-05,2]
[328637212,1717649863204,692.15201027,9.999e-05,2]
[328637213,1717649864976,515.33926844,9.999e-05,2]
[328637214,1717649873028,194.99346474,9.999e-05,2]
[328637215,1717649877475,386.51200975,0.00014977,7]
[328637216,1717649888560,154.95351395,9.999e-05,2]
[328637217,1717649891577,1500.61628881,9.999e-05,2]
[328637218,1717649894665,524.11356144,9.999e-05,2]
[328637219,1717649900264,923.66938935,0.00014,2]
[328637220,1717649900517,261.86988608,9.999e-05,2]
[328637221,1717649902672,2309.2649502,0.00013901,2]
[328637222,1717649902701,22590.7350498,0.00013901,2]
[328637223,1717649905325,303.11673738,9.999e-05,2]
[328637224,1717649906565,154.95351395,9.999e-05,2]
[328637225,1717649913698,1342.40609524,9.999e-05,2]
[328637226,1717649914590,154.95351395,9.999e-05,2]
[328637227,1717649915507,241.86176735,9.999e-05,2]
[328637228,1717649925277,154.95351395,9.999e-05,2]
[328637230,1717650005386,411.37134746,9.999e-05,2]
[328637231,1717650021787,1441.41031443,9.999e-05,2]
[328637232,1717650024288,568.50837105,9.999e-05,2]
[328637233,1717650039500,284.42018081,0.000137,2]
[328637234,1717650045710,529.97215195,9.999e-05,2]
[328637235,1717650084582,721.95297279,9.999e-05,2]
[328637236,1717650106898,1281.31823399,9.999e-05,2]
[328637237,1717650117546,302.78496149,9.999e-05,2]
[328637238,1717650180784,1284.786474,0.00013699,2]
[328637239,1717650281225,1990.27394418,0.00013909,2]
[328637240,1717650294228,524.11356144,9.999e-05,2]
[328637242,1717650350818,568.50837105,0.00014,2]
[328637243,1717650352947,11091.4314529,0.00014,2]
[328637244,1717650353168,19298.65138035,0.00014,2]
[328637245,1717650357163,7914.74227919,0.00014,2]
[328637246,1717650357879,59548.95244126,0.00014,2]
[328637247,1717650362099,1910.2108174,0.00014,2]
[328637248,1717650364606,609.76146649,0.00014,2]
[328637249,1717650452901,7751.56529165,0.00017601,7]
[328637254,1717650514295,3875.78264583,0.00017601,7]
[328637269,1717650564920,285.73167299,9.999e-05,2]
[328637270,1717650568473,1281.31823399,9.999e-05,2]
[328637271,1717650572846,1937.89132291,0.00017601,7]
[328637328,1717650632794,-3070.38438642,0.00013052,2]
[328637330,1717650632805,-11091.4314529,0.00013053,2]
[328637332,1717650632814,-9584.29016261,0.00013054,2]
[328637334,1717650632824,-2686.10930532,0.00013055,2]
[328637337,1717650632835,-10536.38828398,0.00013056,2]
[328637339,1717650632844,-24900.0,0.00013061,2]
[328637342,1717650632854,-1516.73137677,0.00013891,2]
[328637345,1717650632863,-7914.74227919,0.0001399,2]
[328637348,1717650632873,-678.42891221,0.00014002,2]
[328637351,1717650632883,-17418.38383079,0.00014003,2]
[328637354,1717650632892,-628.12388855,0.00014119,2]
[328637357,1717650632903,-474.10540474,0.0001412,2]
[328637360,1717650632912,-234.57402104,0.0001412,2]
[328637363,1717650632921,-1327.69702899,0.00014124,2]
[328637366,1717650632931,-187.69219361,0.00014124,2]
[328637369,1717650632940,-363.3355297,0.00014124,2]
[328637372,1717650632949,-538.38052932,0.00014124,2]
[328637375,1717650632959,-365.85258109,0.00014125,2]
[328637378,1717650632968,-878.75900711,0.0001413,2]
[328637381,1717650632977,-1990.27394417,0.00014157,2]
[328637383,1717650632986,-1990.27394417,0.00014405,2]
[328637385,1717650632995,-1990.27394417,0.00014652,2]
[328637387,1717650633005,-310.49510961,0.00014827,2]
[328637389,1717650633014,-291.44125449,0.00014874,2]
[328637391,1717650633024,-262.84524676,0.00014874,2]
[328637393,1717650633034,-207.76815853,0.00014874,2]
[328637396,1717650633044,-276.01808699,0.00014874,2]
[328637398,1717650633053,-211.19274145,0.00014874,2]
[328637400,1717650633063,-338.22772763,0.00014874,2]
[328637402,1717650633072,-190.98694145,0.00014874,2]
[328637404,1717650633082,-184.526248,0.00014895,2]
[328637405,1717650633091,-151.0,0.00014895,2]
[328637407,1717650633101,-154.214012,0.00014895,2]
[328637408,1717650633110,-241.349259,0.00014895,2]
[328637409,1717650633119,-153.2815,0.00014895,2]
[328637410,1717650633129,-241.349259,0.00014895,2]
[328637411,1717650633139,-1990.27394417,0.000149,2]
[328637412,1717650633148,-158.903543,0.000149,2]
[328637413,1717650633158,-151.0,0.000149,2]
[328637414,1717650633167,-415.3177314,0.00014976,2]
[328637415,1717650633177,-297.9493287,0.00014976,2]
[328637416,1717650633186,-1279.95090856,0.00014977,2]
[328637417,1717650633196,-252.71059883,0.00014977,2]
[328637418,1717650633206,-155.95551529,0.00014977,2]
[328637419,1717650633216,-414.84512934,0.00014977,2]
[328637420,1717650633226,-251.82600463,0.00014977,2]
[328637421,1717650633236,-517.28622248,0.00014977,2]
[328637422,1717650633245,-698.28680763,0.00014977,2]
[328637423,1717650633255,-193.01656905,0.00014977,2]
[328637428,1717650633388,-156.84667236,0.00014977,2]
[328637429,1717650633399,-1505.39581883,0.00014977,2]
[328637430,1717650633409,-151.0,0.00014977,2]
[328637431,1717650633419,-1893.85030812,0.00014977,2]
[328637432,1717650633428,-1438.03481934,0.00014978,2]
[328637433,1717650633438,-31658.97297001,0.00014978,2]
[328637434,1717650633448,-1739.641168,0.00014978,2]
[328637435,1717650633460,-338.379674,0.00014978,2]
[328637436,1717650633471,-338.379674,0.00014978,2]
[328637437,1717650633480,-151.0,0.00014978,2]
[328637438,1717650633490,-151.0,0.00014978,2]
[328637439,1717650633500,-151.0,0.00014978,2]
[328637440,1717650633509,-153.239835,0.00014978,2]
[328637441,1717650633519,-151.0,0.00014978,2]
[328637442,1717650633527,-230.278531,0.00014978,2]
[328637443,1717650633538,-171.440685,0.00014978,2]
[328637444,1717650633547,-239.374143,0.00014978,2]
[328637445,1717650633557,-239.374143,0.00014978,2]
[328637446,1717650633567,-151.0,0.00014978,2]
[328637447,1717650633576,-281.79040596,0.00014979,2]
[328637448,1717650633585,-318.85130828,0.00014979,2]
[328637449,1717650633595,-235.16029073,0.00014979,2]
[328637450,1717650633603,-40950.29181628,0.00014979,2]
[328637451,1717650633613,-252.44040856,0.00014979,2]
[328637452,1717650633622,-155.89919325,0.00014979,2]
[328637453,1717650633631,-552.92484794,0.00014979,2]
[328637454,1717650633640,-158.70342431,0.00014979,2]
[328637455,1717650633650,-151.0,0.00014979,2]
[328637456,1717650633660,-151.0,0.00014979,2]
[328637457,1717650633670,-153.849481,0.00014979,2]
[328637458,1717650633679,-241.349259,0.00014979,2]
[328637459,1717650633689,-241.349259,0.00014979,2]
[328637460,1717650633698,-1739.641168,0.00014979,2]
[328637461,1717650633707,-338.379674,0.00014979,2]
[328637462,1717650633716,-338.379674,0.00014979,2]
[328637463,1717650633726,-151.0,0.00014979,2]
[328637464,1717650633735,-151.0,0.00014979,2]
[328637465,1717650633746,-151.0,0.00014979,2]
[328637466,1717650633755,-151.0,0.00014979,2]
[328637467,1717650633765,-239.374143,0.00014979,2]
[328637468,1717650633775,-239.374143,0.00014979,2]
[328637469,1717650633784,-151.0,0.00014979,2]
[328637470,1717650633795,-283.12068328,0.00014985,2]
[328637471,1717650633805,-156.67509902,0.00014999,2]
[328637472,1717650633815,-80000.0,0.00015,2]
[328637473,1717650633825,-157.06411215,0.00015,2]
[328637474,1717650633836,-151.0,0.00015,2]
[328637475,1717650633845,-945.32067944,0.00015,2]
[328637476,1717650633855,-241.349259,0.00015,2]
[328637477,1717650633865,-241.349259,0.00015,2]
[328637478,1717650633875,-277.343655,0.00015,2]
[328637479,1717650633887,-277.343655,0.00015,2]
[328637480,1717650633896,-1739.641168,0.00015,2]
[328637481,1717650633907,-338.379674,0.00015,2]
[328637482,1717650633916,-338.379674,0.00015,2]
[328637483,1717650633927,-151.0,0.00015,2]
[328637484,1717650633936,-151.0,0.00015,2]
[328637485,1717650633945,-151.0,0.00015,2]
[328637486,1717650633954,-239.374143,0.00015,2]
[328637487,1717650633966,-1100.10114648,0.00015,2]
[328637488,1717650633976,-239.374143,0.00015,2]
[328637489,1717650633985,-151.0,0.00015,2]
[328637490,1717650633994,-1516.73137671,0.00015749,2]
[328637491,1717650634003,-159.56685,0.00016438,2]
[328637492,1717650634014,-159.56685,0.00016438,2]
[328637493,1717650634024,-275.45969432,0.000165,2]
[328637494,1717650634034,-1600.0,0.000169,2]
[328637495,1717650634044,-4236.27632862,0.00017329,2]
[328637496,1717650634053,-241.349259,0.00017456,2]
[328637497,1717650634063,-241.349259,0.00017456,2]
[328637498,1717650634072,-277.343655,0.00017456,2]
[328637499,1717650634081,-277.343655,0.00017456,2]
[328637500,1717650634091,-159.56685,0.00017456,2]
[328637501,1717650634100,-159.56685,0.00017456,2]
[328637502,1717650634112,-1739.641168,0.00017456,2]
[328637503,1717650634122,-338.379674,0.00017456,2]
[328637504,1717650634132,-338.379674,0.00017456,2]
[328637505,1717650634141,-151.0,0.00017456,2]
[328637506,1717650634151,-151.0,0.00017456,2]
[328637507,1717650634162,-151.0,0.00017456,2]
[328637508,1717650634172,-239.374143,0.00017456,2]
[328637509,1717650634181,-239.374143,0.00017456,2]
[328637510,1717650634190,-210.898044,0.00017456,2]
[328637511,1717650634200,-190.09701144,0.00017502,2]
[328637512,1717650634209,-151.0,0.00017507,2]
[328637513,1717650634218,-188.59861021,0.00017594,2]
[328637514,1717650634227,-214.7668461,0.00017599,2]
[328637515,1717650634237,-689.46379424,0.00017599,2]
[328637516,1717650634246,-159.75452184,0.00017599,2]
[328637517,1717650634255,-46615.11241243,0.00017601,2]
[328637518,1717650634264,-241.349259,0.00017601,2]
[328637519,1717650634273,-241.349259,0.00017601,2]
[328637520,1717650634283,-277.343655,0.00017601,2]
[328637521,1717650634292,-277.343655,0.00017601,2]
[328637522,1717650634302,-159.56685,0.00017601,2]
[328637523,1717650634311,-159.56685,0.00017601,2]
[328637524,1717650634321,-1739.641168,0.00017601,2]
[328637525,1717650634330,-286.51498306,0.00017601,2]
[328637526,1717650634339,-338.379674,0.00017601,2]
[328637527,1717650634348,-338.379674,0.00017601,2]
[328637528,1717650634358,-154.95351395,0.00017601,2]
[328637529,1717650634368,-151.0,0.00017601,2]
[328637530,1717650634379,-151.0,0.00017601,2]
[328637531,1717650634389,-151.0,0.00017601,2]
[328637532,1717650634398,-239.374143,0.00017601,2]
[328637533,1717650634408,-239.374143,0.00017601,2]
[328637534,1717650634417,-1516.73137671,0.00017608,2]
[328637535,1717650634427,-1138.90852539,0.00017713,2]
[328637536,1717650634436,-10482.25493534,0.00017898,2]
[328637537,1717650634445,-241.349259,0.00017898,2]
[328637538,1717650634456,-241.349259,0.00017898,2]
[328637539,1717650634466,-277.343655,0.00017898,2]
[328637540,1717650634475,-277.343655,0.00017898,2]
[328637541,1717650634484,-159.56685,0.00017898,2]
[328637542,1717650634493,-159.56685,0.00017898,2]
[328637543,1717650634503,-1739.641168,0.00017898,2]
[328637544,1717650634512,-1739.641168,0.00017898,2]
[328637545,1717650634521,-338.379674,0.00017898,2]
[328637546,1717650634532,-338.379674,0.00017898,2]
[328637547,1717650634541,-151.0,0.00017898,2]
[328637548,1717650634550,-151.0,0.00017898,2]
[328637549,1717650634559,-151.0,0.00017898,2]
[328637550,1717650634569,-239.374143,0.00017898,2]
[328637551,1717650634578,-239.374143,0.00017898,2]
[328637552,1717650634587,-2640.8656142,0.00017999,2]
[328637553,1717650634596,-154.95351395,0.00018,2]
[328637554,1717650634614,-710.56668851,0.00018,2]
[328637555,1717650634625,-2762.77347703,0.00018,2]
[328637556,1717650634634,-151.0,0.00018051,3]
[328637557,1717650634644,-606.28251401,0.000185,2]
[328637558,1717650634654,-151.0,0.00018595,3]
[328637559,1717650634664,-292.6,0.00018847,3]
[328637560,1717650634674,-241.349259,0.000189,2]
[328637561,1717650634683,-241.349259,0.000189,2]
[328637562,1717650634693,-277.343655,0.000189,2]
[328637563,1717650634703,-277.343655,0.000189,2]
[328637564,1717650634712,-5851.53724505,0.000189,2]
[328637565,1717650634722,-159.56685,0.000189,2]
[328637566,1717650634732,-159.56685,0.000189,2]
[328637567,1717650634742,-1739.641168,0.000189,2]
[328637568,1717650634751,-1739.641168,0.000189,2]
[328637569,1717650634762,-338.379674,0.000189,2]
[328637570,1717650634771,-338.379674,0.000189,2]
[328637571,1717650634781,-151.0,0.000189,2]
[328637572,1717650634790,-170.806609,0.000189,2]
[328637573,1717650634799,-151.0,0.000189,2]
[328637574,1717650634809,-239.374143,0.000189,2]
[328637575,1717650634819,-239.374143,0.000189,2]
[328637576,1717650634828,-151.0,0.0001914,3]
[328637577,1717650634838,-157.67948583,0.00019175,2]
[328637578,1717650634847,-8878.28019622,0.00019175,2]
[328637579,1717650634857,-179.73568925,0.00019175,2]
[328637580,1717650634866,-154.9690062,0.00019176,2]
[328637581,1717650634875,-988.74092855,0.00019177,2]
[328637582,1717650634885,-241.349259,0.00019177,2]
[328637583,1717650634894,-241.349259,0.00019177,2]
[328637584,1717650634903,-277.343655,0.00019177,2]
[328637585,1717650634914,-277.343655,0.00019177,2]
[328637586,1717650634923,-159.56685,0.00019177,2]
[328637587,1717650634933,-159.56685,0.00019177,2]
[328637588,1717650634942,-1739.641168,0.00019177,2]
[328637589,1717650634951,-1739.641168,0.00019177,2]
[328637590,1717650634961,-338.379674,0.00019177,2]
[328637591,1717650634970,-338.379674,0.00019177,2]
[328637592,1717650634980,-170.814812,0.00019177,2]
[328637593,1717650634990,-279.82028808,0.00019177,2]
[328637594,1717650634999,-239.374143,0.00019177,2]
[328637595,1717650635009,-239.374143,0.00019177,2]
[328637596,1717650635019,-500.0,0.00019178,2]
[328637597,1717650635028,-500.0,0.00019178,2]
[328637598,1717650635038,-434.40925526,0.00019178,2]
[328637599,1717650635047,-500.0,0.00019178,2]
[328637600,1717650635057,-500.0,0.00019178,2]
[328637601,1717650635066,-500.0,0.00019178,2]
[328637602,1717650635075,-500.0,0.00019178,2]
[328637603,1717650635085,-539.82730199,0.00019178,2]
[328637604,1717650635094,-500.0,0.00019178,2]
[328637605,1717650635104,-500.0,0.00019178,2]
[328637606,1717650635113,-392.37348786,0.00019178,2]
[328637607,1717650635123,-500.0,0.00019178,2]
[328637608,1717650635132,-500.0,0.00019178,2]
[328637609,1717650635142,-248.82563883,0.00019178,2]
[328637610,1717650635151,-500.0,0.00019178,2]
[328637611,1717650635163,-500.0,0.00019178,2]
[328637612,1717650635172,-651.71314475,0.00019178,2]
[328637613,1717650635182,-500.0,0.00019178,2]
[328637614,1717650635191,-594.04606173,0.00019178,2]
[328637615,1717650635201,-421.1291852,0.00019178,2]
[328637616,1717650635210,-500.0,0.00019178,2]
[328637617,1717650635219,-500.0,0.00019178,2]
[328637618,1717650635229,-500.0,0.00019178,2]
[328637619,1717650635238,-500.0,0.00019178,2]
[328637620,1717650635247,-500.0,0.00019178,2]
[328637621,1717650635257,-500.0,0.00019178,2]
[328637622,1717650635267,-500.0,0.00019178,2]
[328637623,1717650635276,-414.02583223,0.00019178,2]
[328637624,1717650635286,-500.0,0.00019178,2]
[328637625,1717650635295,-500.0,0.00019178,2]
[328637626,1717650635305,-500.0,0.00019178,2]
[328637627,1717650635314,-500.0,0.00019178,2]
[328637628,1717650635324,-411.14787029,0.00019178,2]
[328637629,1717650635333,-500.0,0.00019178,2]
[328637630,1717650635343,-500.0,0.00019178,2]
[328637631,1717650635352,-500.0,0.00019178,2]
[328637632,1717650635363,-500.0,0.00019178,2]
[328637633,1717650635372,-500.0,0.00019178,2]
[328637634,1717650635383,-500.0,0.00019178,2]
[328637635,1717650635393,-500.0,0.00019178,2]
[328637636,1717650635403,-500.0,0.00019178,2]
[328637637,1717650635414,-500.0,0.00019178,2]
[328637638,1717650635424,-500.0,0.00019178,2]
[328637639,1717650635434,-500.0,0.00019178,2]
[328637640,1717650635444,-500.0,0.00019178,2]
[328637641,1717650635453,-499.99999999,0.00019178,2]
[328637642,1717650635468,-229.23233842,0.00019178,2]
[328637643,1717650635478,-486.83140779,0.00019178,2]
[328637644,1717650635487,-500.0,0.00019178,2]
[328637645,1717650635498,-468.68464334,0.00019178,2]
[328637646,1717650635509,-435.03954649,0.00019178,2]
[328637647,1717650635519,-500.0,0.00019178,2]
[328637648,1717650635528,-615.32663719,0.00019178,2]
[328637649,1717650635537,-500.0,0.00019178,2]
[328637650,1717650635548,-500.0,0.00019178,2]
[328637651,1717650635558,-449.23577335,0.00019178,2]
[328637652,1717650635568,-500.0,0.00019178,2]
[328637653,1717650635577,-500.0,0.00019178,2]
[328637654,1717650635586,-500.0,0.00019178,2]
[328637655,1717650635595,-500.0,0.00019178,2]
[328637656,1717650635605,-500.0,0.00019178,2]
[328637657,1717650635717,-500.0,0.00019178,2]
[328637658,1717650635727,-500.0,0.00019178,2]
[328637659,1717650635736,-500.0,0.00019178,2]
[328637660,1717650635745,-500.0,0.00019178,2]
[328637661,1717650635754,-251.73397384,0.00019178,2]
[328637662,1717650635763,-500.0,0.00019178,2]
[328637663,1717650635772,-322.15625615,0.00019178,2]
[328637664,1717650635781,-500.0,0.00019178,2]
[328637665,1717650635790,-491.19942228,0.00019178,2]
[328637666,1717650635799,-450.95688966,0.00019178,2]
[328637667,1717650635808,-346.71619935,0.00019178,2]
[328637668,1717650635817,-500.0,0.00019178,2]
[328637669,1717650635825,-490.0,0.00019178,2]
[328637670,1717650635836,-206.99184504,0.00019178,2]
[328637671,1717650635845,-365.3688013,0.00019178,2]
[328637672,1717650635854,-500.0,0.00019178,2]
[328637673,1717650635866,-500.0,0.00019178,2]
[328637674,1717650635876,-500.0,0.00019178,2]
[328637675,1717650635886,-500.0,0.00019178,2]
[328637676,1717650635896,-564.21796364,0.00019178,2]
[328637677,1717650635907,-500.0,0.00019178,2]
[328637678,1717650635916,-220.41010938,0.00019178,2]
[328637679,1717650635926,-414.98675754,0.00019178,2]
[328637680,1717650635935,-345.83087203,0.00019178,2]
[328637681,1717650635944,-237.44853587,0.00019178,2]
[328637682,1717650635954,-343.75048238,0.00019178,2]
[328637683,1717650635964,-382.98147318,0.00019178,2]
[328637684,1717650635973,-482.98097176,0.00019178,2]
[328637685,1717650635984,-500.0,0.00019178,2]
[328637686,1717650635993,-500.0,0.00019178,2]